bitfinex/quotes_SOLUSD_20250717
["timestamp","ask_amount","ask_price","bid_price","bid_amount"]
[1752788043280,5.69476082,175.6,175.59,1e-08]
[1752788043598,17.25065569,175.6,175.59,1e-08]
[1752788044101,6.35476082,175.6,175.59,1e-08]
[1752788044598,17.25065569,175.6,175.59,1e-08]
[1752788044809,67.51533966,175.6,175.59,1e-08]
[1752788045304,67.51533966,175.6,175.58,1e-08]
[1752788045598,17.25098001,175.59,175.58,1e-08]
[1752788045902,34.03566398,175.59,175.58,1e-08]
[1752788047399,35.60076398,175.59,175.58,1e-08]
[1752788048261,24.70486911,175.59,175.58,1e-08]
[1752788048387,69.08076398,175.59,175.58,1e-08]
[1752788049090,58.18486911,175.59,175.58,1e-08]
[1752788049291,5.69443653,175.61,175.58,1e-08]
[1752788049581,5.69443653,175.61,175.59,10.89589487]
[1752788049788,5.69443653,175.61,175.6,10.89589487]
[1752788050211,0.06,175.61,175.6,10.89589487]
[1752788050412,0.06,175.61,175.58,10.89589488]
[1752788050726,0.72,175.61,175.58,1e-08]
[1752788051089,0.72,175.61,175.58,10.89589488]
[1752788051420,0.06,175.61,175.6,10.89589487]
[1752788051589,0.06,175.61,175.58,0.48000001]
[1752788051903,0.06,175.61,175.59,10.89589487]
[1752788052422,0.06,175.61,175.58,11.37589488]
[1752788052626,0.06,175.61,175.58,10.89589488]
[1752788052806,0.06,175.61,175.6,10.89589487]
[1752788053192,0.06,175.61,175.6,0.48]
[1752788053503,0.06,175.61,175.58,10.89589488]
[1752788053816,0.06,175.61,175.59,10.89589487]
[1752788054001,0.06,175.61,175.58,1e-08]
[1752788054208,0.72,175.61,175.58,1e-08]
[1752788054405,6.35476082,175.6,175.58,1e-08]
[1752788054924,26.06,175.61,175.59,10.89589487]
[1752788055124,5.75452475,175.61,175.58,0.48000001]
[1752788055431,5.75452475,175.61,175.58,10.89589488]
[1752788055614,5.75452475,175.61,175.59,10.89589487]
[1752788056424,0.72,175.61,175.58,1e-08]
[1752788056597,0.06,175.61,175.59,10.89589487]
[1752788056800,0.06,175.61,175.6,11.37589487]
[1752788057196,0.06,175.61,175.58,1e-08]
[1752788057518,0.72,175.61,175.58,1e-08]
[1752788058313,5.69476082,175.6,175.58,1e-08]
[1752788058508,5.69476082,175.6,175.59,10.89589487]
[1752788059103,0.06,175.61,175.59,11.94540338]
[1752788059403,0.06,175.61,175.6,11.37589487]
[1752788060409,0.06,175.61,175.6,17.07065569]
[1752788061123,0.06,175.61,175.6,11.37589487]
[1752788061513,0.06,175.61,175.59,0.56950851]
[1752788061715,0.06,175.61,175.6,10.89589487]
[1752788061917,0.06,175.61,175.6,11.37589487]
[1752788062304,0.06,175.61,175.58,6.42420001]
[1752788062305,0.06,175.61,175.58,1e-08]
[1752788062628,0.06,175.61,175.6,10.89589487]
[1752788062841,0.72,175.61,175.58,1e-08]
[1752788063147,0.06,175.61,175.58,1e-08]
[1752788063435,11.55589487,175.6,175.58,1e-08]
[1752788063611,36.89589487,175.59,175.58,1e-08]
[1752788063811,54.34057884,175.59,175.58,1e-08]
[1752788064422,49.13976911,175.59,175.58,1e-08]
[1752788064726,32.35508514,175.59,175.58,1e-08]
[1752788065746,43.25098001,175.59,175.58,1e-08]
[1752788065918,32.35508514,175.59,175.58,1e-08]
[1752788066236,43.25098001,175.59,175.58,1e-08]
[1752788066822,32.35508514,175.59,175.58,1e-08]
[1752788067034,43.25098001,175.59,175.58,1e-08]
[1752788067656,32.35508514,175.59,175.58,1e-08]
[1752788067826,43.25098001,175.59,175.58,1e-08]
[1752788068253,31.69508514,175.59,175.58,1e-08]
[1752788068756,5.69508514,175.59,175.58,1e-08]
[1752788069161,5.69485332,175.6,175.58,10.89589488]
[1752788069345,5.75448938,175.61,175.58,1e-08]
[1752788069859,5.75448938,175.61,175.58,10.89589488]
[1752788070032,5.75448938,175.61,175.58,1e-08]
[1752788070564,5.75448938,175.61,175.6,10.89589487]
[1752788070738,5.75448938,175.61,175.58,1e-08]
[1752788070930,5.75448938,175.61,175.59,10.89589487]
[1752788071759,5.75448938,175.61,175.58,1e-08]
[1752788071760,0.66,175.6,175.58,1e-08]
[1752788071957,5.69508514,175.59,175.58,1e-08]
[1752788073965,5.75443653,175.61,175.58,1e-08]
[1752788074560,6.47443653,175.61,175.58,1e-08]
[1752788074736,0.72,175.6,175.58,1e-08]
[1752788075059,36.89589487,175.59,175.58,1e-08]
[1752788075232,26.72,175.59,175.58,1e-08]
[1752788075638,26.0,175.59,175.58,1e-08]
[1752788075866,26.72,175.59,175.58,1e-08]
[1752788076158,43.31098001,175.59,175.58,1e-08]
[1752788076635,65.77508514,175.59,175.58,1e-08]
[1752788077855,31.69508514,175.59,175.58,1e-08]
[1752788078160,5.69476082,175.6,175.58,10.89589488]
[1752788078337,5.69476082,175.6,175.59,10.89589487]
[1752788079851,5.75443653,175.61,175.59,10.89589487]
[1752788081365,5.75443653,175.61,175.58,10.89589488]
[1752788082247,5.75443653,175.61,175.59,10.89589487]
[1752788083035,6.47443653,175.61,175.58,10.89589488]
[1752788083743,6.47443653,175.61,175.58,1e-08]
[1752788083744,26.0,175.59,175.58,1e-08]
[1752788084138,26.72,175.59,175.58,1e-08]
[1752788084851,37.61589487,175.59,175.58,1e-08]
[1752788085163,43.31098001,175.59,175.58,1e-08]
[1752788085349,76.63098001,175.59,175.58,1e-08]
[1752788085747,65.73508514,175.59,175.58,1e-08]
[1752788085959,95.06696398,175.59,175.58,1e-08]
[1752788086761,32.41508514,175.59,175.58,1e-08]
[1752788087263,31.69508514,175.59,175.58,10.89589488]
[1752788087439,5.69508514,175.59,175.58,10.89589488]
[1752788088048,5.69508514,175.59,175.58,1e-08]
[1752788088268,5.69508514,175.59,175.58,10.89589488]
[1752788089147,6.41508514,175.59,175.58,1e-08]
[1752788089554,34.09566398,175.59,175.58,1e-08]
[1752788090741,60.09566398,175.59,175.58,1e-08]
[1752788091966,0.06,175.61,175.58,10.89589488]
[1752788092151,0.06,175.61,175.59,10.89589487]
[1752788092152,5.75453603,175.61,175.59,10.89589487]
[1752788092767,0.06,175.61,175.58,0.56954095]
[1752788093063,0.06,175.61,175.6,10.89589487]
[1752788093254,5.75443653,175.61,175.58,1e-08]
[1752788093456,5.75443653,175.61,175.6,10.89589487]
[1752788094057,0.06,175.61,175.6,10.89589487]
[1752788094564,0.06,175.61,175.6,11.37589487]
[1752788095165,0.06,175.61,175.6,0.48]
[1752788095379,0.06,175.61,175.6,10.89589487]
[1752788096957,0.06,175.61,175.6,11.37589487]
[1752788098149,0.06,175.61,175.6,10.89589487]
[1752788098350,0.06,175.61,175.6,11.37589487]
[1752788099471,0.78,175.61,175.58,1e-08]
[1752788099677,0.72,175.6,175.58,1e-08]
[1752788099970,10.89589487,175.59,175.58,1e-08]
[1752788100194,0.72,175.59,175.58,1e-08]
[1752788100366,16.78468397,175.58,175.5,10.89589487]
[1752788100675,16.78468397,175.58,175.46,1.579]
[1752788100676,10.89589487,175.53,175.48,10.89589487]
[1752788100852,0.72,175.53,175.49,10.89589487]
[1752788101053,0.72,175.53,175.5,10.89589487]
[1752788101253,16.78468397,175.5,175.43,0.57002793]
[1752788101454,10.89589487,175.48,175.42,10.89589487]
[1752788101655,10.89589487,175.48,175.43,10.89589487]
[1752788101656,0.56986551,175.47,175.43,10.89589487]
[1752788102073,1.28986551,175.47,175.42,10.89589487]
[1752788102269,1.28986551,175.47,175.4,0.1]
[1752788102270,1.28986551,175.47,175.43,10.89589487]
[1752788102472,5.69930468,175.46,175.44,10.89589487]
[1752788102871,58.36186291,175.49,175.45,10.89589487]
[1752788102872,0.56986551,175.49,175.45,10.89589487]
[1752788103181,5.69833038,175.49,175.47,10.89589487]
[1752788103366,5.69833038,175.49,175.41,0.57009292]
[1752788103566,6.35833038,175.49,175.46,10.89589487]
[1752788103770,5.69833038,175.49,175.48,10.89589487]
[1752788104278,5.69833038,175.49,175.46,10.89589487]
[1752788104462,0.66,175.49,175.46,10.89589487]
[1752788104674,0.66,175.48,175.41,0.57009292]
[1752788104973,0.56986551,175.47,175.4,0.1]
[1752788105182,16.78468397,175.46,175.42,10.89589487]
[1752788105478,1.22986551,175.45,175.42,10.89589487]
[1752788105664,0.56986551,175.45,175.4,0.1]
[1752788105868,0.66,175.44,175.4,0.1]
[1752788106194,1.22986551,175.43,175.4,10.99589487]
[1752788106493,5.70092925,175.41,175.4,0.1]
[1752788106681,5.70092925,175.41,175.4,10.99589487]
[1752788107195,5.70092925,175.41,175.4,0.1]
[1752788107375,5.70092925,175.41,175.4,10.99589487]
[1752788107579,0.56986551,175.44,175.4,10.99589487]
[1752788107771,1.22986551,175.44,175.41,10.89589487]
[1752788108187,6.36027931,175.43,175.4,0.1]
[1752788108395,6.36027931,175.43,175.41,10.89589487]
[1752788108696,0.66,175.42,175.4,10.99589487]
[1752788108995,0.66,175.42,175.4,0.1]
[1752788109192,5.70092925,175.41,175.4,10.99589487]
[1752788109897,5.70092925,175.41,175.4,0.1]
[1752788110388,6.36092925,175.41,175.4,0.1]
[1752788111292,17.25682412,175.41,175.36,10.89589487]
[1752788111482,1.22986551,175.4,175.36,10.89589487]
[1752788111682,0.66,175.39,175.36,10.89589487]
[1752788111994,0.66,175.38,175.32,0.57038558]
[1752788112180,0.66,175.38,175.35,10.89589487]
[1752788112684,0.66,175.38,175.34,10.89589487]
[1752788113283,5.70222957,175.37,175.31,0.67041811]
[1752788113485,5.70222957,175.37,175.34,10.89589487]
[1752788113693,0.66,175.36,175.31,0.57041811]
[1752788113996,0.66,175.35,175.31,10.89589487]
[1752788114195,0.66,175.35,175.28,0.1]
[1752788114377,10.89589487,175.33,175.26,26.57058085]
[1752788114574,10.89589487,175.33,175.27,10.89589487]
[1752788114575,0.56986551,175.32,175.27,10.89589487]
[1752788114776,1.22986551,175.32,175.27,10.89589487]
[1752788115077,0.56986551,175.32,175.25,1.6251]
[1752788115280,6.36423733,175.31,175.25,1.6251]
[1752788115485,6.36423733,175.31,175.24,0.67064597]
[1752788115486,0.56986551,175.3,175.24,0.1]
[1752788115672,0.56986551,175.3,175.25,10.89589487]
[1752788115873,0.66,175.29,175.26,10.89589487]
[1752788116300,0.66,175.29,175.22,5.80703091]
[1752788116500,0.66,175.28,175.23,26.0]
[1752788116678,0.66,175.28,175.24,10.89589487]
[1752788116878,0.66,175.28,175.23,26.0]
[1752788117095,0.66,175.27,175.2,38.98744196]
[1752788117295,0.56986551,175.26,175.23,10.89589487]
[1752788117498,6.36595389,175.26,175.23,10.89589487]
[1752788117707,5.70595389,175.26,175.23,10.89589487]
[1752788117894,1.22986551,175.25,175.17,0.670874]
[1752788118205,12.12576038,175.25,175.17,0.1]
[1752788118383,10.89589487,175.21,175.17,0.1]
[1752788118588,0.56986551,175.2,175.17,0.1]
[1752788118780,0.66,175.2,175.17,0.1]
[1752788118973,0.66,175.19,175.17,0.1]
[1752788119285,0.66,175.18,175.17,0.1]
[1752788119485,42.78468397,175.14,175.06,10.89589487]
[1752788119786,10.89589487,175.12,175.06,10.89589487]
[1752788119979,0.56986551,175.11,175.03,0.2]
[1752788120182,1.22986551,175.11,175.04,26.0]
[1752788120381,1.22986551,175.11,175.03,10.89589487]
[1752788120600,10.89589487,175.1,175.03,10.89589487]
[1752788120775,0.56986551,175.09,175.05,10.89589487]
[1752788120982,0.56986551,175.09,175.01,5.9139592]
[1752788121379,10.89589487,175.05,174.95,0.2]
[1752788121589,0.56986551,175.04,174.95,0.2]
[1752788121789,1.22986551,175.04,174.97,26.0]
[1752788121984,1.22986551,175.04,174.99,10.89589487]
[1752788122185,1.22986551,175.04,174.97,26.2]
[1752788122186,0.56986551,175.04,174.97,26.2]
[1752788122399,0.56986551,175.06,174.97,26.2]
[1752788122573,17.44468397,175.05,174.95,5.71591883]
[1752788122775,12.12576038,175.04,174.95,5.71591883]
[1752788122983,10.89589487,175.01,174.94,5.71619631]
[1752788123183,5.71461226,174.99,174.91,5.717226]
[1752788123404,1.22986551,174.98,174.91,5.717226]
[1752788123581,1.22986551,174.98,174.94,10.89589487]
[1752788123793,0.56986551,174.98,174.91,5.717226]
[1752788123995,0.56986551,174.98,174.93,10.89589487]
[1752788124191,0.66,174.98,174.91,5.717226]
[1752788124507,14.28280595,175.04,174.91,5.717226]
[1752788124508,1.22986551,175.01,174.92,0.2]
[1752788124684,1.22986551,175.01,174.96,10.92589487]
[1752788124879,0.66,175.0,174.96,0.03]
[1752788125114,0.56986551,174.99,174.96,0.03]
[1752788125288,11.46576038,174.99,174.96,0.03]
[1752788125610,0.66,174.98,174.96,0.03]
[1752788125799,0.56986551,174.97,174.96,0.03]
[1752788125994,0.56986551,174.98,174.96,10.92589487]
[1752788126412,0.56986551,174.98,174.96,0.03]
[1752788126710,0.66,174.97,174.96,0.03]
[1752788127379,6.37526547,174.97,174.96,0.03]
[1752788127590,0.66,174.97,174.96,0.03]
[1752788127992,23.15994944,174.97,174.96,0.03]
[1752788128188,16.78468397,174.92,174.83,0.80198421]
[1752788128407,10.89589487,174.91,174.84,10.89589487]
[1752788128597,1.22986551,174.9,174.84,10.89589487]
[1752788128800,1.22986551,174.9,174.85,10.89589487]
[1752788129126,28.34057884,174.89,174.8,5.72082379]
[1752788129290,6.94828488,174.88,174.8,5.72082379]
[1752788129599,6.94828488,174.88,174.77,10.89589487]
[1752788129600,10.89589487,174.83,174.77,10.89589487]
[1752788129799,11.55589487,174.84,174.78,10.89589487]
[1752788130001,0.56986551,174.83,174.78,10.89589487]
[1752788130197,1.22986551,174.83,174.78,10.89589487]
[1752788130404,0.66,174.82,174.78,10.89589487]
[1752788130622,0.66,174.82,174.76,5.72205369]
[1752788130925,1.22986551,174.82,174.76,5.72205369]
[1752788131287,15.41139605,174.78,174.73,5.72298132]
[1752788131487,1.22986551,174.77,174.71,5.72377082]
[1752788131918,1.22986551,174.77,174.7,5.72404199]
[1752788132219,15.41139605,174.75,174.68,5.72447023]
[1752788132386,0.56986551,174.75,174.72,15.41139605]
[1752788132591,1.22986551,174.76,174.71,15.41139605]
[1752788132816,1.22986551,174.76,174.7,5.72393945]
[1752788133111,1.22986551,174.76,174.69,5.72441869]
[1752788133112,27.22986551,174.76,174.69,5.72441869]
[1752788133315,42.64126156,174.76,174.7,15.41139605]
[1752788133493,48.36340902,174.76,174.7,15.41139605]
[1752788133701,27.22986551,174.76,174.71,15.41139605]
[1752788134008,0.7,174.75,174.7,15.41139605]
[1752788134194,1.26986551,174.75,174.71,15.41139605]
[1752788134510,1.26986551,174.78,174.72,15.41139605]
[1752788134725,16.11139605,174.77,174.69,0.23]
[1752788135025,0.56986551,174.76,174.71,15.41139605]
[1752788135204,16.68126156,174.76,174.7,15.41139605]
[1752788135517,16.68126156,174.76,174.69,5.72442612]
[1752788135518,15.41139605,174.75,174.69,5.72442612]
[1752788135691,15.98126156,174.74,174.68,15.41139605]
[1752788136095,0.56986551,174.74,174.68,15.41139605]
[1752788136314,16.11139605,174.73,174.64,59.59]
[1752788136513,42.78468397,174.77,174.62,31.10119017]
[1752788136514,15.41139605,174.71,174.65,15.41139605]
[1752788136690,0.56986551,174.7,174.64,15.41139605]
[1752788136893,0.56986551,174.7,174.62,15.11917828]
[1752788137090,0.56986551,174.7,174.66,15.41139605]
[1752788137512,0.56986551,174.7,174.62,15.11917828]
[1752788137714,1.26986551,174.72,174.68,15.41139605]
[1752788137922,0.56986551,174.72,174.64,0.8026065]
[1752788138130,0.56986551,174.72,174.64,0.23]
[1752788138131,15.41139605,174.71,174.64,0.23]
[1752788138371,15.41139605,174.71,174.62,14.3165062]
[1752788138372,0.56986551,174.7,174.62,14.3165062]
[1752788138535,0.56986551,174.7,174.62,5.72672087]
[1752788138838,6.99401326,174.7,174.64,15.41139605]
[1752788139196,16.68126156,174.7,174.62,5.72672087]
[1752788139397,0.56986551,174.7,174.65,15.41139605]
[1752788139608,0.7,174.69,174.65,15.41139605]
[1752788139821,0.7,174.69,174.62,5.95672087]
[1752788140021,0.56986551,174.7,174.67,15.41139605]
[1752788140213,26.7,174.73,174.63,0.23]
[1752788140214,0.7,174.73,174.69,15.41139605]
[1752788140414,0.7,174.73,174.65,0.80257371]
[1752788140723,0.56986551,174.72,174.67,15.41139605]
[1752788140902,0.56986551,174.72,174.66,5.72540936]
[1752788141221,1.26986551,174.72,174.67,15.41139605]
[1752788141397,1.26986551,174.72,174.65,0.23]
[1752788141601,16.68126156,174.72,174.65,15.41139605]
[1752788141810,1.26986551,174.72,174.66,15.41139605]
[1752788141998,16.68126156,174.72,174.63,5.72639294]
[1752788142217,15.41139605,174.68,174.61,0.57270488]
[1752788142442,26.56986551,174.67,174.59,0.23]
[1752788142646,0.7,174.66,174.61,15.41139605]
[1752788142812,0.56986551,174.65,174.61,15.41139605]
[1752788143147,0.56986551,174.65,174.58,5.95776131]
[1752788143316,1.26986551,174.67,174.58,5.95776131]
[1752788143633,15.41139605,174.65,174.58,5.72776131]
[1752788143940,0.56986551,174.64,174.59,15.41139605]
[1752788144114,1.26986551,174.64,174.58,5.72776131]
[1752788144316,26.0,174.6,174.55,0.25]
[1752788144517,1.26986551,174.59,174.55,0.25]
[1752788144736,0.56986551,174.59,174.55,15.66139605]
[1752788144934,0.56986551,174.61,174.55,15.66139605]
[1752788145230,21.70831326,174.61,174.55,0.25]
[1752788145414,16.11139605,174.6,174.55,0.25]
[1752788145614,15.98126156,174.59,174.55,0.25]
[1752788145882,0.56986551,174.59,174.55,0.25]
[1752788146140,0.56986551,174.59,174.55,21.3903687]
[1752788146333,0.7,174.58,174.55,0.25]
[1752788146637,37.92476929,174.56,174.55,0.25]
[1752788146933,16.78468397,174.55,174.51,0.1]
[1752788147112,15.41139605,174.52,174.51,0.1]
[1752788147736,16.68126156,174.52,174.51,0.1]
[1752788148518,6.9998678,174.52,174.51,0.1]
[1752788148723,22.41126385,174.52,174.51,0.1]
[1752788148925,6.9998678,174.52,174.51,0.1]
[1752788149245,22.41126385,174.52,174.51,0.1]
[1752788149833,39.19594782,174.52,174.51,0.1]
[1752788150448,39.19594782,174.52,174.22,28.85685678]
[1752788150449,42.78468397,174.48,174.37,15.41139605]
[1752788150654,15.41139605,174.44,174.37,21.14611944]
[1752788150850,0.56986551,174.43,174.37,5.73472339]
[1752788151051,0.56986551,174.43,174.37,15.41139605]
[1752788151242,0.56986551,174.43,174.36,5.73520007]
[1752788151243,15.41139605,174.42,174.36,5.73520007]
[1752788151438,15.41139605,174.37,174.27,0.48]
[1752788151652,15.41139605,174.32,174.27,0.48]
[1752788151833,15.41139605,174.37,174.31,15.41139605]
[1752788152037,15.41139605,174.38,174.32,15.89139605]
[1752788152554,15.41139605,174.38,174.33,5.73624734]
[1752788152752,15.98126156,174.41,174.34,0.48]
[1752788153052,15.41139605,174.41,174.34,15.89139605]
[1752788153436,0.56986551,174.43,174.35,15.89139605]
[1752788153657,0.56986551,174.46,174.36,26.57352603]
[1752788153856,15.41139605,174.46,174.39,15.41139605]
[1752788154058,15.41139605,174.47,174.4,0.48]
[1752788154237,0.56986551,174.49,174.4,0.48]
[1752788154558,5.73131591,174.48,174.39,5.73427375]
[1752788154758,15.41139605,174.43,174.39,5.73427375]
[1752788155056,15.41139605,174.44,174.38,26.0]
[1752788155249,15.41139605,174.41,174.36,6.21523872]
[1752788155641,15.41139605,174.41,174.33,26.0]
[1752788155642,15.41139605,174.39,174.33,26.0]
[1752788155954,0.56986551,174.38,174.31,5.73690551]
[1752788156152,15.41139605,174.37,174.31,21.14830156]
[1752788156860,6.30412025,174.4,174.27,49.04552613]
[1752788156861,15.41139605,174.35,174.27,0.48]
[1752788157042,15.41139605,174.35,174.28,41.41139605]
[1752788157358,15.98126156,174.34,174.27,15.89139605]
[1752788157559,0.56986551,174.34,174.27,32.21808928]
[1752788157737,15.98126156,174.34,174.27,47.62948533]
[1752788158339,15.41139605,174.33,174.27,26.0]
[1752788158545,0.56986551,174.32,174.27,26.0]
[1752788158838,0.56986551,174.32,174.28,0.03]
[1752788159056,0.56986551,174.35,174.28,0.03]
[1752788159260,7.00545484,174.35,174.28,0.03]
[1752788159557,15.41139605,174.29,174.28,0.03]
[1752788159752,0.56986551,174.29,174.28,0.03]
[1752788160055,16.68126156,174.29,174.28,0.03]
[1752788160257,1.26986551,174.29,174.28,0.03]
[1752788160461,16.68126156,174.29,174.28,0.03]
[1752788160666,22.41882539,174.29,174.28,0.03]
[1752788162167,56.97882539,174.29,174.28,0.03]
[1752788163162,22.41882539,174.29,174.28,0.03]
[1752788163756,15.41139605,174.3,174.28,0.03]
[1752788164044,0.56986551,174.33,174.28,0.03]
[1752788164245,15.98126156,174.34,174.28,0.03]
[1752788164443,8.15529604,174.35,174.28,0.03]
[1752788164444,8.15529604,174.35,174.3,15.41139605]
[1752788164657,8.15529604,174.35,174.28,0.03]
[1752788164658,8.15529604,174.35,174.32,21.14797246]
[1752788164861,8.15529604,174.35,174.33,15.41139605]
[1752788165041,8.15529604,174.35,174.32,6.21657641]
[1752788165042,8.15529604,174.35,174.32,21.62797246]
[1752788165250,8.15529604,174.35,174.32,21.14797246]
[1752788165562,8.15529604,174.35,174.34,15.41139605]
[1752788165767,8.15529604,174.35,174.34,15.89139605]
[1752788165949,15.98126156,174.4,174.34,15.89139605]
[1752788166269,15.41139605,174.4,174.34,15.89139605]
[1752788166561,0.56986551,174.45,174.39,21.14559098]
[1752788166767,30.0,174.4,174.39,5.73419493]
[1752788166950,30.0,174.4,174.39,21.62559098]
[1752788167352,29.52,174.4,174.39,21.62559098]
[1752788167664,15.98126156,174.48,174.39,21.62559098]
[1752788167973,21.71235083,174.49,174.43,15.41139605]
[1752788168151,9.41270035,174.5,174.43,15.41139605]
[1752788168472,9.41270035,174.5,174.4,0.57339449]
[1752788168473,8.16283484,174.5,174.48,15.41139605]
[1752788168671,8.16283484,174.5,174.44,0.57326301]
[1752788168672,8.16283484,174.5,174.45,16.78468397]
[1752788168864,8.16283484,174.5,174.47,15.41139605]
[1752788169051,8.16283484,174.5,174.45,5.73230151]
[1752788169362,8.16283484,174.5,174.47,15.41139605]
[1752788169566,21.14048594,174.55,174.49,15.41139605]
[1752788169867,21.14048594,174.55,174.45,54.6230553]
[1752788169868,15.41139605,174.55,174.45,54.6230553]
[1752788170045,15.41139605,174.55,174.49,15.41139605]
[1752788170365,0.68,174.56,174.51,15.41139605]
[1752788170870,0.06,174.58,174.52,15.41139605]
[1752788171040,0.06,174.58,174.51,5.73032915]
[1752788171245,0.06,174.58,174.53,15.41139605]
[1752788171852,0.06,174.58,174.51,5.73032915]
[1752788172052,0.06,174.58,174.53,15.41139605]
[1752788172264,0.06,174.58,174.51,5.73032915]
[1752788172265,0.06,174.58,174.55,15.41139605]
[1752788172476,0.06,174.58,174.56,15.41139605]
[1752788172860,0.06,174.58,174.54,5.72917143]
[1752788173166,0.06,174.58,174.57,15.41139605]
[1752788174061,0.06,174.58,174.57,32.76891613]
[1752788174859,0.06,174.59,174.57,38.49727724]
[1752788175050,0.06,174.59,174.58,49.83139605]
[1752788175386,0.06,174.59,174.58,66.61608002]
[1752788175868,1e-08,174.59,174.58,108.02747607]
[1752788176250,21.13484125,174.72,174.62,16.78468397]
[1752788176460,21.13484125,174.72,174.66,15.41139605]
[1752788176852,0.68,174.73,174.68,15.41139605]
[1752788177160,6.29236518,174.75,174.7,15.41139605]
[1752788177363,6.97236518,174.75,174.7,15.41139605]
[1752788177666,6.97236518,174.75,174.65,6.29827105]
[1752788177667,0.68,174.75,174.71,15.41139605]
[1752788178050,0.2,174.77,174.72,15.41139605]
[1752788178264,5.921808,174.77,174.73,15.41139605]
[1752788178466,0.2,174.77,174.73,15.41139605]
[1752788180168,0.2,174.77,174.76,49.69139605]
[1752788180472,0.2,174.77,174.76,66.47608002]
[1752788180677,0.2,174.77,174.76,92.47608002]
[1752788180880,16.09139605,174.92,174.8,16.78468397]
[1752788181079,16.09139605,174.91,174.81,26.57204965]
[1752788181377,15.41139605,174.83,174.79,34.24]
[1752788181560,0.68,174.82,174.74,26.0]
[1752788181759,0.68,174.82,174.76,15.41139605]
[1752788182073,0.68,174.82,174.78,15.41139605]
[1752788182255,0.68,174.82,174.77,15.41139605]
[1752788182657,0.68,174.82,174.74,31.72267436]
[1752788182857,0.68,174.82,174.78,15.41139605]
[1752788183413,0.68,174.82,174.74,32.29495317]
[1752788183576,6.40034828,174.82,174.74,32.29495317]
[1752788183778,21.13174433,174.82,174.76,15.41139605]
[1752788183980,15.41139605,174.78,174.72,15.41139605]
[1752788184157,1.24986551,174.77,174.7,15.41139605]
[1752788184482,0.68,174.77,174.72,15.41139605]
[1752788184657,5.72174465,174.78,174.74,15.41139605]
[1752788184858,1.24986551,174.77,174.64,5.7258648]
[1752788185060,0.68,174.76,174.66,15.41139605]
[1752788185378,15.41139605,174.73,174.67,15.41139605]
[1752788185580,0.68,174.73,174.67,15.41139605]
[1752788185878,16.09139605,174.73,174.63,40.55900273]
[1752788186074,16.09139605,174.73,174.66,15.41139605]
[1752788186278,16.09139605,174.73,174.67,15.41139605]
[1752788186458,5.72344322,174.72,174.67,15.41139605]
[1752788186660,6.40344322,174.72,174.66,15.41139605]
[1752788187156,21.81483927,174.72,174.66,15.41139605]
[1752788187357,6.40344322,174.72,174.66,15.41139605]
[1752788187569,6.40344322,174.72,174.63,34.83263929]
[1752788187771,6.40344322,174.72,174.67,15.41139605]
[1752788187985,6.40344322,174.72,174.68,15.41139605]
[1752788188169,0.68,174.71,174.63,34.83263929]
[1752788188358,0.68,174.71,174.66,15.41139605]
[1752788188558,5.72409845,174.7,174.66,15.41139605]
[1752788188760,0.68,174.69,174.63,34.26]
[1752788188982,0.68,174.69,174.65,15.41139605]
[1752788189171,15.41139605,174.67,174.58,0.03]
[1752788189374,15.41139605,174.65,174.58,15.44139605]
[1752788189889,16.66126156,174.66,174.59,15.41139605]
[1752788190673,5.72573718,174.65,174.59,15.41139605]
[1752788191265,15.41139605,174.63,174.58,0.03]
[1752788191580,0.56986551,174.62,174.58,0.03]
[1752788191786,0.68,174.61,174.58,0.03]
[1752788192168,0.68,174.6,174.58,0.03]
[1752788192681,0.68,174.59,174.58,0.03]
[1752788192982,16.66126156,174.59,174.58,0.03]
[1752788193285,7.9723,174.58,174.51,0.03]
[1752788193464,15.41139605,174.52,174.51,0.03]
[1752788193666,0.56986551,174.53,174.51,0.03]
[1752788193873,16.07139605,174.52,174.51,0.03]
[1752788194567,47.80139834,174.52,174.51,0.03]
[1752788194882,47.80139834,174.52,174.4,35.18339449]
[1752788194883,26.0,174.49,174.4,0.67339449]
[1752788195063,15.98126156,174.48,174.4,5.8339209]
[1752788195263,16.64126156,174.48,174.41,15.41139605]
[1752788195866,1.22986551,174.48,174.4,15.51139605]